bitfinex-derivatives/quotes_BNBF0:USTF0_20250710
["timestamp","ask_amount","ask_price","bid_price","bid_amount"]
[1752162605664,2.22386847,667.94,667.17,2.2317239]
[1752162605665,1.67729794,667.82,667.17,2.2317239]
[1752162606163,2.22386847,667.94,667.17,2.2317239]
[1752162606164,1.67729794,667.81,667.17,2.2317239]
[1752162606968,1.67729794,667.81,667.18,2.2317239]
[1752162607468,1.67674013,667.81,667.18,2.2317239]
[1752162607664,1.67674013,667.81,667.19,2.2317239]
[1752162607967,1.67674013,667.81,667.18,2.2317239]
[1752162608267,1.67674013,667.81,667.19,2.2317239]
[1752162608470,1.67674013,667.81,667.18,2.2317239]
[1752162609067,1.67674013,667.81,667.19,2.2317239]
[1752162609470,1.67674013,667.81,667.18,2.2317239]
[1752162609970,1.67674013,667.81,667.19,2.2317239]
[1752162610373,1.67674013,667.81,667.18,2.2317239]
[1752162610568,1.67674013,667.81,667.19,2.2317239]
[1752162611970,1.67674013,667.81,667.18,2.2317239]
[1752162612169,1.67674013,667.81,667.17,2.2317239]
[1752162613169,1.67674013,667.81,667.16,2.2317239]
[1752162613470,1.67674013,667.8,667.16,2.2317239]
[1752162614573,1.67674013,667.81,667.16,2.2317239]
[1752162615574,1.67674013,667.8,667.17,2.2317239]
[1752162615774,1.67674013,667.81,667.16,2.2317239]
[1752162618476,1.67674013,667.81,667.17,2.2317239]
[1752162619273,1.67674013,667.8,667.17,2.2317239]
[1752162620374,1.67674013,667.8,667.18,2.2317239]
[1752162621878,2.22386847,667.91,667.19,2.2317239]
[1752162621879,1.67674013,667.79,667.19,2.2317239]
[1752162622083,1.67674013,667.79,667.2,2.2317239]
[1752162622476,1.67674013,667.79,667.19,2.2317239]
[1752162623279,1.67674013,667.82,667.14,2.2317239]
[1752162623478,1.67674013,667.81,667.14,2.2317239]
[1752162625681,1.67674013,667.81,667.15,2.2317239]
[1752162632284,1.67674013,667.8,667.16,2.2317239]
[1752162633190,1.67674013,667.78,667.21,2.2317239]
[1752162634390,1.67674013,667.78,667.2,2.2317239]
[1752162634691,1.67674013,667.82,667.03,1.815]
[1752162635390,1.67674013,667.81,667.03,1.815]
[1752162635589,1.67674013,667.82,667.03,1.815]
[1752162636190,1.67674013,667.81,667.03,1.815]
[1752162637788,1.67674013,667.77,667.03,1.815]
[1752162638993,1.67674013,667.78,667.03,1.815]
[1752162640289,1.67674013,667.77,667.03,1.815]
[1752162640994,1.67674013,667.75,667.03,1.815]
[1752162643290,3.33580271,668.07,667.03,1.815]
[1752162643291,1.67674013,667.74,667.03,1.815]
[1752162645494,1.67674013,667.74,667.02,0.26063413]
[1752162647894,1.67674013,667.74,667.03,2.354]
[1752162648997,1.67674013,667.72,667.06,2.2317239]
[1752162650298,1.67674013,667.72,667.05,2.2317239]
[1752162650794,1.67674013,667.72,667.04,2.2317239]
[1752162650993,1.67674013,667.72,667.06,2.2317239]
[1752162651297,1.67674013,667.72,667.05,2.2317239]
[1752162651900,1.67674013,667.76,667.08,2.2317239]
[1752162654800,1.67674013,667.76,667.09,2.2317239]
[1752162655401,1.67674013,667.76,667.08,2.2317239]
[1752162656501,1.67674013,667.77,667.05,2.2317239]
[1752162656999,1.67674013,667.77,667.04,2.2317239]
[1752162657502,1.67674013,667.78,667.04,2.2317239]
[1752162658399,1.67674013,667.77,667.04,2.2317239]
[1752162658603,1.67674013,667.78,667.04,2.2317239]
[1752162659599,1.67674013,667.77,667.04,2.2317239]
[1752162659803,1.67674013,667.77,667.05,2.2317239]
[1752162660000,1.67674013,667.78,667.04,2.2317239]
[1752162661004,1.67674013,667.77,667.05,2.2317239]
[1752162661204,1.67674013,667.77,667.06,2.2317239]
[1752162661600,1.67674013,667.78,667.04,2.2317239]
[1752162662606,1.67674013,667.78,667.03,4.5857239]
[1752162662902,1.67674013,667.78,667.03,2.354]
[1752162663109,1.67674013,667.79,667.03,2.354]
[1752162665903,1.67674013,667.81,667.03,2.354]
[1752162668309,1.67674013,667.82,667.03,2.354]
[1752162672603,1.67674013,667.81,667.03,2.354]
[1752162675913,1.67674013,667.79,667.03,2.354]
[1752162677512,2.22386847,667.98,667.03,2.354]
[1752162677813,1.67924667,667.79,667.03,2.354]
[1752162678217,1.67924667,667.77,667.06,2.2317239]
[1752162678518,1.67924667,667.76,667.08,2.2317239]
[1752162678718,1.67924667,667.75,667.08,2.2317239]
[1752162679819,1.67924667,667.75,667.09,2.2317239]
[1752162680218,1.67924667,667.78,667.03,2.354]
[1752162681616,1.67924667,667.78,667.03,4.5857239]
[1752162682120,1.67924667,667.77,667.03,4.5857239]
[1752162683022,1.67924667,667.77,667.03,2.2317239]
[1752162683217,1.67911414,667.77,667.03,2.2317239]
[1752162684622,1.67911414,667.78,667.04,2.2317239]
[1752162685418,1.67911414,667.82,667.08,2.2317239]
[1752162687027,1.67911414,667.81,667.08,2.2317239]
[1752162687326,1.67911414,667.81,667.11,0.2605912]
[1752162690226,1.67911414,667.78,667.17,2.2317239]
[1752162690523,1.67911414,667.77,667.17,2.2317239]
[1752162690923,1.67911414,667.77,667.18,2.2317239]
[1752162691125,1.67911414,667.78,667.17,2.2317239]
[1752162691525,1.67911414,667.77,667.18,2.2317239]
[1752162692529,1.67911414,667.78,667.18,2.2317239]
[1752162692730,1.67911414,667.77,667.18,2.2317239]
[1752162693930,1.67911414,667.77,667.2,2.2317239]
[1752162694425,1.67911414,667.76,667.2,2.2317239]
[1752162694729,1.67911414,667.77,667.2,2.2317239]
[1752162694929,1.67911414,667.76,667.2,2.2317239]
[1752162695127,1.67911414,667.76,667.22,2.2317239]
[1752162695932,1.67911414,667.76,667.11,3.60817705]
[1752162695933,1.67911414,667.76,667.21,2.2317239]
[1752162699736,1.67911414,667.77,667.2,2.2317239]
[1752162702032,1.67911414,667.77,667.19,2.2317239]
[1752162704334,1.67911414,667.77,667.2,2.117]
[1752162704538,1.67911414,667.77,667.2,4.3487239]
[1752162707139,1.67911414,667.77,667.2,2.117]
[1752162708939,1.67911414,667.77,667.2,4.3487239]
[1752162709539,1.67911414,667.77,667.21,2.2317239]
[1752162709740,1.67911414,667.76,667.22,2.2317239]
[1752162710041,1.67911414,667.77,667.2,4.3487239]
[1752162711837,1.67911414,667.76,667.21,2.2317239]
[1752162714841,1.67911414,667.76,667.2,4.3487239]
[1752162716445,1.67911414,667.77,667.2,4.3487239]
[1752162716942,1.67911414,667.76,667.21,2.2317239]
[1752162717545,1.67911414,667.77,667.2,4.3487239]
[1752162718143,1.67911414,667.76,667.21,2.2317239]
[1752162718945,1.67911414,667.77,667.2,2.117]
[1752162719949,1.67911414,667.86,667.2,2.117]
[1752162720246,1.67911414,667.87,667.2,2.117]
[1752162722051,1.67911414,667.86,667.2,2.117]
[1752162723851,1.67911414,667.87,667.2,2.117]
[1752162724650,1.67911414,667.93,667.2,2.117]
[1752162724950,1.67911414,667.97,667.2,2.117]
[1752162725646,1.67911414,667.98,667.2,2.117]
[1752162726050,1.67911414,667.96,667.2,2.117]
[1752162728247,1.67911414,667.97,667.2,2.117]
[1752162729653,1.67911414,667.94,667.2,2.117]
[1752162730149,1.67911414,667.93,667.21,2.2317239]
[1752162731151,1.67911414,667.94,667.21,2.2317239]
[1752162731654,1.67911414,667.92,667.25,2.2317239]
[1752162732054,1.67911414,667.93,667.24,2.2317239]
[1752162732351,1.67911414,667.93,667.23,2.2317239]
[1752162732550,1.67911414,667.93,667.24,2.2317239]
[1752162733553,1.67911414,667.93,667.23,2.2317239]
[1752162734355,1.67911414,667.94,667.22,2.2317239]
[1752162735054,2.22386847,668.08,667.2,2.117]
[1752162735055,1.67911414,667.93,667.23,2.2317239]
[1752162735554,1.67911414,667.93,667.25,2.2317239]
[1752162735751,1.67911414,667.93,667.24,2.2317239]
[1752162736054,1.67911414,667.92,667.25,2.2317239]
[1752162736556,1.67911414,667.93,667.23,2.2317239]
[1752162737051,1.67911414,667.94,667.23,2.2317239]
[1752162737958,1.67911414,667.93,667.23,2.2317239]
[1752162738257,1.67911414,667.94,667.23,2.2317239]
[1752162739058,1.67911414,667.96,667.2,2.117]
[1752162743363,1.67911414,667.96,667.18,2.2317239]
[1752162744261,1.67911414,667.95,667.19,2.2317239]
[1752162746269,1.67911414,667.95,667.2,2.2317239]
[1752162746979,1.67911414,667.97,667.14,2.2317239]
[1752162747566,1.67911414,667.97,667.15,2.446]
[1752162748864,1.67911414,667.96,667.17,2.2317239]
[1752162751566,1.67747987,667.96,667.17,2.2317239]
[1752162751962,1.67747987,667.95,667.19,2.2317239]
[1752162752567,1.67747987,667.95,667.18,2.2317239]
[1752162753664,1.67747987,667.96,667.17,2.2317239]
[1752162756570,1.67747987,667.96,667.16,2.2317239]
[1752162756972,1.67747987,667.94,667.22,2.2317239]
[1752162757168,1.67747987,667.93,667.24,2.2317239]
[1752162762574,1.67747987,667.93,667.25,2.2317239]
[1752162763679,1.67747987,667.92,667.27,2.2317239]
[1752162764178,1.67747987,667.92,667.28,2.2317239]
[1752162764473,2.22386847,668.04,667.15,5.79358585]
[1752162764474,1.67747987,667.91,667.27,2.2317239]
[1752162765980,1.67747987,667.91,667.28,2.2317239]
[1752162766279,1.67747987,667.9,667.3,2.2317239]
[1752162766980,1.67747987,667.9,667.31,2.2317239]
[1752162767476,1.67747987,667.89,667.31,2.2317239]
[1752162767680,1.67747987,667.9,667.32,2.2317239]
[1752162768983,1.67747987,667.9,667.33,2.2317239]
[1752162769281,1.67747987,667.89,667.33,2.2317239]
[1752162770083,1.67747987,667.89,667.34,2.2317239]
[1752162770286,0.26056778,668.38,667.26,2.2317239]
[1752162770287,1.67747987,667.92,667.26,2.2317239]
[1752162770782,1.67747987,667.92,667.27,2.2317239]
[1752162773185,1.67747987,667.91,667.27,2.2317239]
[1752162773593,1.67747987,667.91,667.26,2.2317239]
[1752162774386,1.67747987,667.91,667.27,2.2317239]
[1752162775090,1.67747987,667.91,667.25,2.2317239]
[1752162775390,1.67747987,667.96,667.15,2.446]
[1752162778389,1.67747987,667.95,667.15,2.446]
[1752162778590,1.67747987,667.95,667.13,2.2317239]
[1752162779090,1.67747987,667.95,667.14,2.2317239]
[1752162780090,1.67747987,667.94,667.15,2.2317239]
[1752162781092,1.67747987,667.95,667.12,2.2317239]
[1752162781289,1.67747987,667.95,667.13,2.2317239]
[1752162781588,1.67747987,667.95,667.13,4.2137239]
[1752162782194,1.67747987,667.94,667.14,2.2317239]
[1752162782393,1.67747987,667.94,667.13,4.2137239]
[1752162782791,1.67747987,667.94,667.14,2.2317239]
[1752162783092,1.67747987,667.93,667.14,2.2317239]
[1752162783893,1.67747987,667.94,667.14,2.2317239]
[1752162784292,1.67747987,667.92,667.16,2.2317239]
[1752162785395,1.67747987,667.89,667.24,2.2317239]
[1752162786593,1.67747987,667.88,667.24,2.2317239]
[1752162789096,1.67747987,667.89,667.24,2.2317239]
[1752162790098,1.67747987,667.89,667.25,2.2317239]
[1752162790899,1.67747987,667.86,667.31,2.2317239]
[1752162791901,1.67747987,667.87,667.3,2.2317239]
[1752162792601,1.67747987,667.85,667.35,2.2317239]
[1752162793605,1.67747987,667.84,667.37,2.2317239]
[1752162796606,1.67747987,667.84,667.36,2.2317239]
[1752162798911,2.22386847,667.96,667.36,2.2317239]
[1752162799112,1.68123799,667.84,667.36,2.2317239]
[1752162800910,1.68123799,667.84,667.37,2.2317239]
[1752162801811,1.68123799,667.84,667.38,2.2317239]
[1752162802010,1.68123799,667.9,667.23,2.2317239]
[1752162803913,1.68123799,667.9,667.22,2.2317239]
[1752162808419,1.68123799,667.91,667.22,2.2317239]
[1752162810115,1.68123799,667.91,667.21,2.2317239]
[1752162811119,1.68123799,667.91,667.22,2.2317239]
[1752162811614,1.68123799,667.91,667.21,2.2317239]
[1752162811916,1.68123799,667.88,667.29,2.2317239]
[1752162812114,1.68123799,667.88,667.28,2.2317239]
[1752162813917,1.68123799,667.87,667.3,2.2317239]
[1752162815821,1.68123799,667.86,667.32,2.2317239]
[1752162818327,1.68123799,667.86,667.34,2.2317239]
[1752162819922,1.68123799,667.85,667.35,2.2317239]
[1752162820827,1.68123799,667.87,667.35,2.2317239]
[1752162821024,1.68123799,667.87,667.31,2.2317239]
[1752162821525,1.68123799,667.87,667.32,2.2317239]
[1752162822130,1.68123799,667.86,667.33,2.2317239]
[1752162822627,1.68123799,667.86,667.32,2.2317239]
[1752162822823,1.68123799,667.86,667.33,2.2317239]
[1752162825130,1.68123799,667.86,667.32,2.2317239]
[1752162826533,1.68123799,667.86,667.33,2.2317239]
[1752162826932,1.68123799,667.87,667.32,2.2317239]
[1752162827935,1.68123799,667.87,667.31,2.2317239]
[1752162828931,1.68123799,667.87,667.3,2.2317239]
[1752162830337,1.68123799,667.89,667.26,2.2317239]
[1752162830733,1.68123799,667.88,667.28,2.2317239]
[1752162832637,1.68123799,667.89,667.27,2.2317239]
[1752162833036,1.68123799,667.89,667.26,2.2317239]
[1752162833234,1.68123799,667.88,667.27,2.2317239]
[1752162834435,1.68123799,668.01,667.11,0.2605912]
[1752162834638,1.68123799,668.0,667.11,0.2605912]
[1752162835137,1.68123799,668.01,667.11,0.2605912]
[1752162837038,1.68123799,668.01,667.12,2.571]
[1752162837434,1.68123799,668.0,667.12,2.571]
[1752162844338,1.68123799,667.92,667.15,2.2317239]
[1752162844739,1.68123799,667.91,667.16,2.2317239]
[1752162844939,1.68123799,667.91,667.17,2.2317239]
[1752162847641,1.68123799,667.84,667.35,2.2317239]
[1752162849937,1.68123799,667.87,667.28,2.2317239]
[1752162850440,1.68123799,667.88,667.26,2.2317239]
[1752162850837,1.68123799,667.88,667.27,2.234]
[1752162852841,2.22386847,668.04,667.27,2.234]
[1752162853046,0.26056778,668.38,667.27,2.234]
[1752162853341,1.2792642,668.37,667.27,2.234]
[1752162853546,1.2792642,668.36,667.27,2.234]
[1752162853743,1.2792642,668.35,667.27,2.234]
[1752162853944,1.2792642,668.37,667.27,2.234]
[1752162854152,0.26056778,668.38,667.27,2.234]
[1752162854153,1.6812637,667.88,667.27,2.234]
[1752162858953,1.6812637,667.87,667.27,4.47777428]
[1752162860051,1.6812637,667.86,667.29,2.24377428]
[1752162861150,1.6812637,667.86,667.3,2.24377428]
[1752162861657,1.6812637,667.86,667.31,2.24377428]
[1752162861859,1.6812637,667.86,667.3,2.24377428]
[1752162862754,1.6812637,667.86,667.29,2.24377428]
[1752162863359,1.6812637,667.87,667.29,2.24377428]
[1752162863559,1.6812637,667.88,667.27,2.234]
[1752162863859,1.6812637,667.88,667.27,4.47777428]
[1752162864155,1.6812637,667.88,667.27,2.234]
[1752162867762,1.6812637,667.87,667.28,2.24377428]
[1752162871672,1.6812637,667.87,667.29,2.24377428]
[1752162873374,1.6812637,667.85,667.33,2.24377428]
[1752162873773,1.6812637,667.85,667.32,2.24377428]
[1752162874171,1.6812637,667.85,667.34,2.24377428]
[1752162874671,1.6812637,667.85,667.33,2.24377428]
[1752162874873,1.6812637,667.83,667.38,2.24377428]
[1752162875673,1.6812637,667.83,667.37,2.24377428]
[1752162876173,1.6812637,667.83,667.38,2.24377428]
[1752162881181,1.6812637,667.84,667.34,2.24377428]
[1752162882882,2.24168493,667.97,667.34,2.24377428]
[1752162882883,1.6812637,667.85,667.34,2.24377428]
[1752162883283,1.6812637,667.86,667.3,2.24377428]
[1752162885483,1.6812637,667.86,667.31,2.24377428]
[1752162887786,1.6812637,667.87,667.29,2.24377428]
[1752162890885,1.6812637,667.86,667.3,2.24377428]
[1752162893289,1.6812637,667.85,667.34,2.24377428]
[1752162893886,1.6812637,667.84,667.34,2.24377428]
[1752162894285,1.6812637,667.85,667.34,2.24377428]
[1752162894884,1.6812637,667.84,667.35,2.24377428]
[1752162896187,1.6812637,667.84,667.36,2.108]
[1752162896591,2.24168493,667.97,667.36,2.108]
[1752162896785,1.68106325,667.84,667.36,2.108]
[1752162897690,1.68106325,667.83,667.38,2.24377428]
[1752162897990,1.68106325,667.91,667.36,2.108]
[1752162903390,1.68106325,667.92,667.36,2.108]
[1752162906192,1.68106325,667.89,667.36,2.108]
[1752162909798,1.68106325,667.86,667.36,2.108]
[1752162910095,1.68106325,667.87,667.36,2.108]
[1752162911700,1.68106325,667.9,667.36,2.108]
[1752162917405,1.68106325,667.89,667.36,2.108]
[1752162921707,1.68106325,667.87,667.36,2.108]
[1752162922608,1.68106325,667.85,667.36,2.108]
[1752162922808,1.68106325,667.86,667.36,2.108]
[1752162923002,0.26056778,668.38,667.36,2.108]
[1752162923003,1.68106325,667.93,667.36,2.108]
[1752162923302,1.68106325,667.94,667.36,2.108]
[1752162927302,1.68106325,667.93,667.36,2.108]
[1752162927905,1.68106325,667.87,667.36,2.108]
[1752162928107,1.68106325,667.9,667.36,2.108]
[1752162928402,1.68106325,667.97,667.41,2.24377428]
[1752162929210,1.68106325,667.99,667.4,2.24377428]
[1752162931114,1.68106325,668.0,667.39,2.24377428]
[1752162932011,1.68106325,668.01,667.4,2.24377428]
[1752162932210,1.68106325,668.01,667.39,2.24377428]
[1752162932407,5.60421234,668.83,667.36,2.108]
[1752162932408,1.68106325,668.05,667.36,2.108]
[1752162932810,1.68106325,668.06,667.36,2.108]
[1752162933309,1.68106325,668.16,667.39,2.24377428]
[1752162934116,1.68106325,668.18,667.37,2.24377428]
[1752162935116,1.68106325,668.19,667.36,4.35177428]
[1752162936217,1.68106325,668.2,667.36,2.108]
[1752162936418,2.24168493,668.38,667.36,2.108]
[1752162936624,1.27704022,668.55,667.36,2.108]
[1752162936917,0.26048782,668.57,667.36,2.108]
[1752162937320,0.26048782,668.57,667.24,0.26055705]
[1752162937517,0.26048782,668.57,667.44,2.23734142]
[1752162937518,1.67767593,668.16,667.44,2.23734142]
[1752162938219,1.67767593,668.17,667.43,2.23734142]
[1752162939222,1.67767593,668.17,667.42,2.23734142]
[1752162939521,1.67767593,668.17,667.38,2.23734142]
[1752162939817,1.67699961,668.17,667.38,2.23734142]
[1752162940118,1.67699961,668.17,667.37,2.23734142]
[1752162941419,1.67699961,668.17,667.38,4.12234142]
[1752162945224,2.23690125,668.32,667.38,4.12234142]
[1752162945423,1.67590102,668.19,667.38,1.885]
[1752162945928,1.67590102,668.18,667.38,1.885]
[1752162946224,1.67590102,668.19,667.38,1.885]
[1752162947327,1.67590102,668.18,667.38,1.885]
[1752162949534,1.67590102,668.17,667.39,2.23734142]
[1752162953337,1.67590102,668.18,667.38,1.885]
[1752162953838,1.67590102,668.21,667.38,1.885]
[1752162955233,1.67590102,668.2,667.38,1.885]
[1752162962337,1.67590102,668.21,667.38,1.885]
[1752162963345,1.67590102,668.2,667.38,1.885]
[1752162963738,1.67590102,668.18,667.38,4.12234142]
[1752162964242,1.67590102,668.19,667.38,1.885]
[1752162964439,1.67496183,668.19,667.38,1.885]
[1752162965140,1.67496183,668.2,667.38,1.885]
[1752162965947,1.67496183,668.25,667.38,1.885]
[1752162969246,1.67496183,668.25,667.24,0.26055705]
[1752162972148,1.67496183,668.24,667.24,0.26055705]
[1752162972349,1.67496183,668.25,667.25,2.361]
[1752162973250,1.67496183,668.24,667.25,2.361]
[1752162974945,1.67496183,668.23,667.25,2.361]
[1752162975146,1.67496183,668.23,667.25,4.59834142]
[1752162975448,1.67496183,668.23,667.25,2.361]
[1752162975850,1.67496183,668.18,667.38,2.23734142]
[1752162976250,1.67496183,668.17,667.38,2.23734142]
[1752162977252,1.67496183,668.17,667.39,2.23734142]
[1752162978152,2.23690125,668.31,667.39,2.23734142]
[1752162978153,1.67496183,668.16,667.39,2.23734142]
[1752162979153,1.67496183,668.16,667.4,2.23734142]
[1752162980049,1.67496183,668.12,667.48,2.23734142]
[1752162981354,1.67496183,668.12,667.49,2.23734142]
[1752162981751,1.67496183,668.12,667.48,2.23734142]
[1752162982253,1.67496183,668.11,667.49,2.23734142]
[1752162983152,1.67496183,668.11,667.5,2.23734142]
[1752162983553,1.67496183,668.11,667.49,2.23734142]
[1752162984154,1.67496183,668.1,667.5,2.23734142]
[1752162984354,1.67496183,668.1,667.51,2.23734142]
[1752162985255,1.67496183,668.09,667.52,2.23734142]
[1752162986151,1.67496183,668.08,667.53,2.23734142]
[1752162987357,1.67496183,668.07,667.54,4.02934142]
[1752162988154,1.67496183,668.06,667.55,2.23734142]
[1752162988656,1.67496183,668.06,667.54,4.02934142]
[1752162989050,1.67496183,668.06,667.55,2.23734142]
[1752162989255,1.67496183,668.06,667.54,4.02934142]
[1752162990255,1.67496183,668.05,667.55,2.23734142]
[1752162991054,1.67496183,668.06,667.54,4.02934142]
[1752162991253,1.67496183,668.05,667.55,2.23734142]
[1752162991756,1.67496183,668.05,667.56,2.23734142]
[1752162992254,1.67496183,668.04,667.56,2.23734142]
[1752162993159,1.67496183,668.03,667.57,2.23734142]
[1752162996158,1.67496183,668.05,667.54,1.792]
[1752162999260,1.67496183,668.04,667.54,1.792]
[1752163002662,1.67496183,668.06,667.54,1.792]
[1752163006158,1.67496183,668.05,667.54,1.792]
[1752163006966,3.35535187,668.31,667.54,1.792]
[1752163007163,1.68178631,668.05,667.54,1.792]
[1752163007964,1.68178631,668.04,667.54,1.792]
[1752163011164,1.68178631,668.04,667.53,2.24335451]
[1752163012568,1.68178631,668.02,667.59,2.24335451]
[1752163013669,2.24238175,668.13,667.59,2.24335451]
[1752163013868,3.35535187,668.23,667.48,3.35601214]
[1752163014066,1.68179507,668.02,667.59,2.24336611]
[1752163019174,1.68179507,668.03,667.56,2.24336611]
[1752163019370,1.68179507,668.03,667.57,2.24336611]
[1752163019571,1.68179507,668.03,667.56,2.24336611]
[1752163020875,1.68179507,668.03,667.57,2.24336611]
[1752163023379,1.68179507,668.03,667.58,2.24336611]
[1752163024285,1.68179507,668.04,667.56,2.24336611]
[1752163024477,1.68179507,668.04,667.57,2.24336611]
[1752163025183,1.68179507,668.04,667.56,2.24336611]
[1752163028982,1.68179507,668.04,667.57,2.24336611]
[1752163029485,1.68179507,668.03,667.57,2.24336611]
[1752163031089,1.68179507,668.04,667.57,2.24336611]
[1752163034190,1.68179507,668.03,667.58,2.24336611]
[1752163034388,1.6815553,668.03,667.59,2.24336611]
[1752163037989,1.6815553,668.05,667.54,2.24336611]
[1752163038193,1.6815553,668.05,667.53,2.24336611]
[1752163038492,1.6815553,668.05,667.54,2.24336611]
[1752163038893,1.6815553,668.05,667.53,2.24336611]
[1752163040988,1.6815553,668.05,667.54,2.24336611]
[1752163042792,1.6815553,668.06,667.52,2.24336611]
[1752163046791,1.6815553,668.09,667.49,2.036]
[1752163047999,1.6815553,668.08,667.49,2.036]
[1752163049394,1.6815553,668.1,667.49,2.036]
[1752163054500,1.6815553,668.12,667.49,2.036]
[1752163056002,1.6815553,668.11,667.49,2.036]
[1752163059202,1.6815553,668.12,667.49,2.036]
[1752163059500,1.6815553,668.11,667.49,2.036]
[1752163063002,1.6815553,668.1,667.49,2.036]
[1752163064407,1.6815553,668.09,667.49,2.036]
[1752163066708,1.6815553,668.08,667.49,2.036]
[1752163066908,1.6815553,668.09,667.49,2.036]
[1752163067410,1.6815553,668.09,667.45,2.24336611]
[1752163068309,1.6815553,668.09,667.46,2.24336611]
[1752163068809,1.6815553,668.09,667.45,2.24336611]
[1752163069109,1.6815553,668.07,667.49,2.24336611]
[1752163070410,1.6815553,668.07,667.5,2.24336611]
[1752163071411,1.6815553,668.06,667.51,2.24336611]
[1752163071910,1.6815553,668.07,667.51,2.24336611]
[1752163072410,1.6815553,668.06,667.51,2.24336611]
[1752163072713,1.6815553,668.06,667.52,2.24336611]
[1752163074011,2.24239343,668.2,667.52,2.24336611]
[1752163075613,3.35535187,668.34,667.44,2.05]
[1752163075815,2.24225467,668.22,667.5,2.2432446]
[1752163076524,1.68170323,668.07,667.5,2.2432446]
[1752163076817,1.68170323,668.06,667.52,2.2432446]
[1752163077220,1.68170323,668.06,667.51,2.2432446]
[1752163078320,1.68170323,668.06,667.52,2.2432446]
[1752163079422,1.68170323,668.06,667.51,2.2432446]
[1752163082022,1.68170323,668.07,667.5,2.2432446]
[1752163082220,1.68170323,668.06,667.5,2.2432446]
[1752163083920,1.68170323,668.07,667.5,2.2432446]
[1752163085427,1.68170323,668.06,667.52,2.2432446]
[1752163085926,1.68170323,668.05,667.53,2.2432446]
[1752163088527,1.68170323,668.07,667.49,2.2432446]
[1752163088829,1.68170323,668.07,667.44,2.05]
[1752163088830,1.68170323,668.07,667.5,2.2432446]
[1752163089027,1.68170323,668.06,667.5,2.2432446]
[1752163090227,1.68170323,668.06,667.51,2.2432446]
[1752163091531,1.68170323,668.06,667.52,2.2432446]
[1752163093828,1.68170323,668.05,667.53,2.2432446]
[1752163094434,1.6822232,668.05,667.53,2.2432446]
[1752163096836,2.24225467,668.19,667.53,2.2432446]
[1752163097036,1.68222157,668.05,667.53,2.2432446]
[1752163097932,1.68222157,668.05,667.54,2.2432446]
[1752163098334,1.68222157,668.02,667.6,2.2432446]
[1752163101742,1.68222157,668.03,667.59,2.2432446]
[1752163103542,1.68222157,668.02,667.6,2.2432446]
[1752163104040,1.68222157,668.05,667.54,2.2432446]
[1752163107648,1.68222157,668.05,667.53,2.2432446]
[1752163107942,1.68222157,668.05,667.54,2.2432446]
[1752163108444,1.68222157,668.15,667.44,2.05]
[1752163108644,1.68222157,668.23,667.44,2.05]
[1752163109350,1.68222157,668.24,667.44,2.05]
[1752163110145,1.68222157,668.24,667.4,0.26046052]
[1752163110446,1.68222157,668.25,667.4,0.26046052]
[1752163111348,1.68222157,668.26,667.4,0.26046052]
[1752163111950,1.68222157,668.25,667.4,0.26046052]
[1752163112350,1.68222157,668.26,667.4,0.26046052]
[1752163112655,1.68222157,668.26,667.41,2.241]
[1752163113657,1.68222157,668.23,667.43,2.2432446]
[1752163114558,1.68222157,668.23,667.44,2.2432446]
[1752163116254,1.68222157,668.23,667.45,2.2432446]
[1752163116655,1.68222157,668.22,667.46,2.2432446]
[1752163117357,1.68222157,668.23,667.46,2.2432446]
[1752163118357,1.68222157,668.18,667.57,2.2432446]
[1752163118660,1.68222157,668.19,667.55,2.2432446]
[1752163120358,1.68222157,668.18,667.57,2.2432446]
[1752163124259,1.68222157,668.19,667.56,2.2432446]
[1752163125360,2.24225467,668.32,667.41,2.241]
[1752163125361,1.68222157,668.27,667.41,2.241]
[1752163127260,1.68222157,668.26,667.41,2.241]
[1752163127461,1.68222157,668.27,667.41,2.241]
[1752163135072,1.68222157,668.22,667.49,2.2432446]
[1752163135572,1.68222157,668.22,667.41,2.241]
[1752163135573,1.68222157,668.22,667.48,2.2432446]
[1752163135769,1.68222157,668.22,667.41,2.241]
[1752163135770,1.68222157,668.19,667.55,2.2432446]
[1752163136373,1.68222157,668.2,667.55,2.2432446]
[1752163137373,1.68222157,668.2,667.54,2.2432446]
[1752163137871,1.68222157,668.19,667.56,2.2432446]
[1752163139573,1.68222157,668.19,667.57,2.2432446]
[1752163141078,1.68222157,668.19,667.56,2.2432446]
[1752163142380,1.68222157,668.19,667.57,2.2432446]
[1752163142677,1.68222157,668.36,667.41,2.241]
[1752163142978,1.68222157,668.11,667.41,2.241]
[1752163143476,1.68222157,668.12,667.41,2.241]
[1752163144781,1.68222157,668.12,667.4,0.26046052]
[1752163147578,1.68222157,668.11,667.4,0.26046052]
[1752163148380,1.68222157,668.04,667.4,0.26046052]
[1752163148584,1.68222157,668.05,667.4,0.26046052]
[1752163148784,1.68222157,668.05,667.41,2.128]